Cogmind - Beta 11.1 @@@ ROGUE MODE // 2022.07.04 @ 14:27:48 Player: Voxette Result: Destroyed by Y-45 Defender with Heavy Assault Rifle Performance ------------- Evolutions (1) 500 Regions Visited (3) 600 Robots Destroyed (84) 420 Value Destroyed (1353) 1353 Prototype IDs (0) 0 Alien Tech Used (0) 0 Bonus (224) 224 TOTAL SCORE: 3097 Bonus ------- High Alert Combat Kills 224 Cogmind --------- Core Integrity 0/400 Matter 154/300 Energy 100/100 System Corruption 0% Temperature Cool (9) Movement Core (100) Ox1 Location -9/Materials Parts ------- > --- POWER (1) -------- (None) > --- PROPULSION (4) --- (None) > --- UTILITY (2) ------ Structural Scanner Hacking Suite > --- WEAPON (2) ------- Maul > --- INVENTORY (5) ---- (None) Peak State ------------ > --- POWER ------------ Light Nuclear Core > --- PROPULSION ------- Flight Unit Flight Unit Flight Unit Flight Unit > --- UTILITY ---------- Structural Scanner > --- WEAPON ----------- Mini Grenade Launcher Maul > --- INVENTORY -------- Hacking Suite Particle Gun [Rating: 12] Favorites ----------- Power Light Nuclear Core Engine Ion Engine Power Core Light Nuclear Core Propulsion Aluminum Leg Leg Aluminum Leg Flight Unit Flight Unit Utility Structural Scanner Device Structural Scanner Storage Small Storage Unit Hackware Hacking Suite Weapon Maul Energy Gun EM Pulse Gun Ballistic Gun Light Assault Rifle Ballistic Cannon Light Cannon Launcher Mini Grenade Launcher Impact Weapon Maul Special Melee Weapon Datajack Build | -11 -10 -10 -9 ------- Run | Scr Mat Min Mat Slots Evolved 2 | . . . 2 Power . | . . . . Propulsion 2 | . . . 2 Utility . | . . . . Weapon . | . . . . Parts Attached 33 | 9 17 . 7 Power 4 | 1 2 . 1 Engine 2 | 1 1 . . Core 2 | . 1 . 1 Reactor . | . . . . Propulsion 7 | 2 3 . 2 Treads . | . . . . Leg 3 | 2 1 . . Wheel . | . . . . Hover . | . . . . Flight 4 | . 2 . 2 Utility 7 | 2 4 . 1 Device 5 | 1 4 . . Storage 1 | 1 . . . Processor . | . . . . Hackware 1 | . . . 1 Protection . | . . . . Artifact . | . . . . Weapon 15 | 4 8 . 3 Energy Gun 1 | 1 . . . Energy Cannon . | . . . . Ballistic Gun 4 | 3 1 . . Ballistic Cannon 3 | . 3 . . Launcher 3 | . 2 . 1 Special Weapon . | . . . . Impact Weapon 3 | . 2 . 1 Slashing Weapon . | . . . . Piercing Weapon . | . . . . Special Melee Weapon 1 | . . . 1 Unidentified Prototypes . | . . . . Parts Lost 12 | . 5 1 6 Power 1 | . . . 1 Propulsion 5 | . 1 . 4 Utility 2 | . 1 1 . Weapon 4 | . 3 . 1 Highest Loss Streak 4 | . 4 1 2 To Critical Strikes . | . . . . Average Slot Usage (%) 66 | . 92 68 51 Engine 2 | . 8 . . Core 4 | . 4 . 6 Leg 6 | . 23 . . Flight 12 | . 3 28 11 Device 15 | . 14 25 11 Storage 3 | . 12 . . Hackware 2 | . . . 4 Ballistic Gun 1 | . 4 . . Ballistic Cannon 3 | . 12 . . Launcher 4 | . 5 . 6 Impact Weapon 5 | . 1 14 3 Special Melee Weapon 3 | . . . 7 Naked Turns . | . . . . Heaviest Build 17 | 14 17 5 10 Greatest Support 20 | 20 20 8 16 Greatest Overweight (x) 2 | . 2 . 2 Average Overweight (x) . | . . . . Largest Inventory Capacity 8 | 8 8 5 5 Average Capacity 6 | 7 7 5 5 Most Carried 8 | 7 8 5 5 Average Carried 4 | 5 7 3 1 Final Capacity 8 | 8 5 5 5 Final Carried 7 | 7 3 5 . Class Distribution -------------------- 96% | Mutant 3% | Sprinter Dominant Class ---------------- Mutant | -10/Materials Mutant | -10/Mines Mutant | -9/Materials Resources | -11 -10 -10 -9 ----------- Run | Scr Mat Min Mat Matter Collected 1066 | 324 319 145 278 Remotely . | . . . . Salvage Created 1947 | 350 410 463 724 Parts 131 | 28 36 9 58 Haulers Intercepted 4 | . 1 . 3 Recyclers Shooed 2 | . 1 1 . Parts Field Recycled . | . . . . Retrieved Matter . | . . . . Parts Self-Destructed . | . . . . Prevented . | . . . . Kills | -11 -10 -10 -9 ------- Run | Scr Mat Min Mat Combat Hostiles Destroyed 28 | . 7 4 17 Melee 3 | . . 3 . Cannons 3 | . 3 . . AOE 21 | . 4 . 17 Classes Destroyed 12 | 3 6 . 3 Worker 17 | 3 4 3 7 Builder 8 | . 3 3 2 Tunneler 13 | 9 1 2 1 Hauler 4 | . 1 . 3 Recycler 7 | 1 2 3 1 Operator 2 | . 1 . 1 Watcher 5 | . 1 . 4 Swarmer 6 | . 3 . 3 Grunt 15 | . 4 4 7 Brawler 1 | . . . 1 Duelist 1 | . . . 1 Sentry 5 | . . . 5 Best Kill Streak 15 | 2 5 10 15 Combat Bots Only 9 | . 3 2 9 Max Kills in Single Turn 3 | 2 2 1 3 Gunslinging . | . . . . Exploded 1 | . 1 . 1 Melee 1 | . . 1 . Uniques/NPCs Destroyed . | . . . . Combat | -11 -10 -10 -9 -------- Run | Scr Mat Min Mat Damage Taken 1494 | 39 671 133 651 Core 639 | . 128 100 411 Absorbed by Shields . | . . . . Core Remaining (%) 54 | 100 . 8 . Volleys Fired 139 | 42 41 . 56 Largest 2 | 2 2 . 1 Hottest 70 | 60 70 . 30 Shots Fired 203 | 84 63 . 56 Gun 93 | 84 9 . . Cannon 44 | . 44 . . Launcher 66 | . 10 . 56 Special . | . . . . Kinetic 95 | 42 53 . . Thermal . | . . . . Explosive 66 | . 10 . 56 Electromagnetic 42 | 42 . . . Robot Hit Streak 6 | 6 6 . 5 Robot Miss Streak 5 | 5 2 . 2 Penetration Max . | . . . . Secondary Targets . | . . . . Shots Hit Robots 150 | 47 36 20 47 Core Hits 93 | 18 24 2 49 Critical Kills 1 | . . 1 . Critical Parts Destroyed 7 | . 1 6 . Critical Strikes 13 | 1 5 7 . Blast 4 | . 4 . . Corrupt 1 | 1 . . . Smash 8 | . 1 7 . Melee Attacks 59 | . 2 28 29 Impact 45 | . 2 28 15 Slashing . | . . . . Piercing . | . . . . Sneak Attacks 22 | . 1 10 11 Combat Hostiles . | . . . . Follow-up Attacks . | . . . . Damage Inflicted 5127 | 625 1017 1232 2253 Guns 549 | 486 63 . . Cannons 475 | . 475 . . Explosions 2628 | 136 362 . 2130 Melee 1471 | . 116 1232 123 Ramming 4 | 3 1 . . Kinetic 710 | 172 538 . . Thermal 136 | 136 . . . Explosive 2492 | . 362 . 2130 Electromagnetic 314 | 314 . . . Impact 1471 | . 116 1232 123 Slashing . | . . . . Piercing . | . . . . Highest Corruption 5 | . 5 5 . Average Corruption 5 | . 5 5 . Corruption Purged . | . . . . Corruption Blocked . | . . . . Effects 11 | . . 11 . Message Errors 3 | . . 3 . Matter Fused 3 | . . 3 . Heat Flow Errors 2 | . . 2 . Energy Discharges 1 | . . 1 . Data Loss (minor) 1 | . . 1 . Alerts 1 | . . 1 . Overload Shots . | . . . . Overflow Damage 976 | 10 78 760 128 Projectiles . | . . . . Explosions 138 | 10 . . 128 Melee 838 | . 78 760 . Knockbacks 10 | . 5 5 . Impact 6 | . 1 5 . Kinetic 4 | . 4 . . Secondary . | . . . . Self-Inflicted Damage 289 | 39 46 57 147 Shots 12 | 1 2 1 8 Rammed . | . . . . Targets Rammed 3 | 2 1 . . Kicked 3 | 2 1 . . Crushed . | . . . . Highest Temperature 172 | 40 81 172 18 Average Temperature 22 | 14 26 85 7 Received Heat Transfer 312 | . 138 42 132 Siege Activations . | . . . . Robots Corrupted . | . . . . Combat Hostiles . | . . . . Parts Fried 15 | 1 1 13 . Impact Corruptions 29 | . 3 26 . Robots Melted . | . . . . Combat Hostiles . | . . . . Parts Melted 1 | 1 . . . Heat Transferred 250 | 250 . . . Parts Sabotaged . | . . . . Parts Stolen . | . . . . Parts Stripped . | . . . . Power Chain Reactions 3 | 3 . . . Missiles Intercepted . | . . . . Alert | -11 -10 -10 -9 ------- Run | Scr Mat Min Mat Peak Influence 1430 | 45 456 316 1430 Initial 122 | . 13 99 122 Average 470 | 18 204 230 1054 Maximum Alert Level 4 | . 2 1 4 Low Security (%) 39 | 100 53 4 3 Level 1 20 | . 19 95 3 Level 2 13 | . 27 . 20 Level 3 2 | . . . 8 Level 4 23 | . . . 64 Level 5 . | . . . . High Security . | . . . . Max Security . | . . . . Squads Dispatched 6 | . . . 6 Investigation 5 | . . . 5 Extermination . | . . . . Reinforcement 1 | . . . 1 Assault . | . . . . Garrison . | . . . . Intercept . | . . . . Searches Triggered . | . . . . Construction Impeded . | . . . . Haulers Reinforced . | . . . . Active Scanning Responses . | . . . . Cargo Convoy Interrupts . | . . . . Stealth | -11 -10 -10 -9 --------- Run | Scr Mat Min Mat Distress Signals 3 | . . . 3 Communications Jammed . | . . . . Distress Signals . | . . . . Times Spotted 47 | . 16 4 27 Peak Tracking Total 5 | . 4 2 5 Tactical Retreats 5 | . 4 . 1 Traps | -11 -10 -10 -9 ------- Run | Scr Mat Min Mat Traps Triggered 1 | . . . 1 Indirectly . | . . . . Trap Hack Attempts . | . . . . Triggered . | . . . . Disarmed . | . . . . Reprogrammed 6 | . 6 . . Reused . | . . . . Traps Extracted . | . . . . Installed . | . . . . Triggered . | . . . . Machines | -11 -10 -10 -9 ---------- Run | Scr Mat Min Mat Machines Disabled 10 | . 1 2 7 Max in Single Turn 1 | . 1 1 1 Machines Sabotaged . | . . . . Garrisons Compromised . | . . . . Overloaded Fab Kills . | . . . . Hacking | -11 -10 -10 -9 --------- Run | Scr Mat Min Mat Machines Accessed 8 | . 2 . 6 Terminals 6 | . 2 . 4 Fabricators . | . . . . Repair Stations . | . . . . Recycling Units 2 | . . . 2 Scanalyzers . | . . . . Garrison Access . | . . . . Total Hacks 37 | . 5 . 32 Successful 27 | . 3 . 24 Failed 10 | . 2 . 8 Catastrophic 3 | . 1 . 2 Database Lockouts . | . . . . Manual 4 | . 3 . 1 Terminals 23 | . 5 . 18 Fabricators . | . . . . Repair Stations . | . . . . Recycling Units 14 | . . . 14 Scanalyzers . | . . . . Garrison Access . | . . . . Terminal Hacks 14 | . 3 . 11 Record 5 | . 2 . 3 Robot Analysis 1 | . . . 1 Alert Level 1 | . . . 1 Unreport Threat 1 | . . . 1 Reprogram Traps 1 | . 1 . . Dispatch Records 1 | . . . 1 Investigation Status 1 | . . . 1 Recall Investigation 1 | . . . 1 Hauler Manifests 1 | . . . 1 Zone Layout 1 | . . . 1 Fabricator Hacks . | . . . . Repair Station Hacks . | . . . . Recycling Unit Hacks 13 | . . . 13 Recycle Component 3 | . . . 3 Process 3 | . . . 3 Report Inventory 4 | . . . 4 Retrieve Matter 3 | . . . 3 Scanalyzer . | . . . . Garrison Access Hacks . | . . . . Unauthorized Hacks . | . . . . Terminals . | . . . . Fabricators . | . . . . Repair Stations . | . . . . Recycling Units . | . . . . Scanalyzers . | . . . . Garrison Access . | . . . . Data Cores Recovered . | . . . . Used . | . . . . Hacking Detections 9 | . 3 . 6 Full Trace Events 6 | . 2 . 4 Feedback Events . | . . . . Feedback Blocked . | . . . . Robot Schematics Acquired . | . . . . Robots Built . | . . . . Authchips . | . . . . Time . | . . . . Total Robot Build Rating . | . . . . Part Schematics Acquired . | . . . . Parts Built . | . . . . Authchips . | . . . . Time . | . . . . Total Part Build Rating . | . . . . Parts Repaired . | . . . . Time . | . . . . Parts Recycled 3 | . . . 3 Recycled Matter 239 | . . . 239 Retrieved Matter 279 | . . . 279 Retrieved Components . | . . . . Parts Scanalyzed . | . . . . Part Schematics Acquired . | . . . . Parts Damaged . | . . . . Bothacking | -11 -10 -10 -9 ------------ Run | Scr Mat Min Mat Used RIF Installer . | . . . . Robots Hacked 3 | . . . 3 Non-combat 2 | . . . 2 Combat 1 | . . . 1 Robot Hacks Applied 4 | . . . 4 parse_system 3 | . . . 3 no_distress 1 | . . . 1 Relay Couplers Released . | . . . . Fabnet Peak Effective % . | . . . . Robots Rewired . | . . . . Allies Hacked . | . . . . Hacks Repelled . | . . . . Allies | -11 -10 -10 -9 -------- Run | Scr Mat Min Mat Total Allies . | . . . . Largest Group . | . . . . Highest-Rated Group . | . . . . Highest-Rated Ally . | . . . . Total Orders . | . . . . Ally Attacks . | . . . . Total Damage . | . . . . Kills . | . . . . Allies Corrupted . | . . . . Allies Melted . | . . . . Intel | -11 -10 -10 -9 ------- Run | Scr Mat Min Mat Robot Analysis Total 1 | . . . 1 Derelict Logs Recovered 2 | . . 2 . Drone Launches . | . . . . Drone Recoveries . | . . . . Exploration | -11 -10 -10 -9 ------------- Run | Scr Mat Min Mat Turns Passed 1969 | 533 400 312 724 Spaces Moved 1252 | 200 220 263 569 Core 362 | 14 . . 348 Treads . | . . . . Legs 330 | 186 144 . . Wheels . | . . . . Hover . | . . . . Flight 560 | . 76 263 221 Fastest Speed 31 | 50 37 37 31 Average Speed 76 | 115 96 37 73 Slowest Speed 200 | 120 200 37 150 Overloaded Moves . | . . . . Propulsion Burnouts . | . . . . Robots Hopped . | . . . . Cave-ins Triggered 1 | . 1 . . Exploration Rate (%) 46 | 11 51 62 60 Regions Visited 3 Branch Regions 1 Pre-discovered Areas . | . . . . Known Exits Taken . | . . . . Unknown Exits Taken 3 | 1 1 1 . Scrap Searched 1 | . . 1 . Spaces Dug 12 | . 6 . 6 Terrain Destroyed 415 | 6 58 14 337 Melee . | . . . . Projectile . | . . . . AOE 415 | 6 58 14 337 Terrain Rammed . | . . . . Walls Destroyed . | . . . . Machines Disabled . | . . . . Actions | -11 -10 -10 -9 --------- Run | Scr Mat Min Mat Total 1974 | 425 345 421 783 Wait 440 | 161 32 129 118 Move 1249 | 199 219 262 569 Hop . | . . . . Pick Up 29 | 12 12 2 3 Fast Attach 7 | 2 4 . 1 Attach 15 | 5 5 . 5 Detach 1 | . 1 . . Swap 11 | 2 8 . 1 Drop 21 | . 20 . 1 Fire 139 | 42 41 . 56 Melee 59 | . 2 28 29 Ram . | . . . . Kick 3 | 2 1 . . Crush . | . . . . Escape Stasis . | . . . . Rewire . | . . . . Trap . | . . . . Miscellaneous . | . . . . Route ------- -11/Scrapyard -10/Materials (discovered 2 exits: [*Min x2]) -10/Mines -9/Materials (discovered 2 exits: [*Min x2]) History --------- Turn | Location | Event 11 | -11/Scrapyard | Discovered new exit (range 15) 534 | -11/Scrapyard | Entered Materials 534 | -10/Materials | Discovered new exit (range 8) 535 | -10/Materials | Build established: Mutant 674 | -10/Materials | Discovered new exit (range 8) 848 | -10/Materials | Crushed by falling debris 879 | -10/Materials | Lost 4 parts (1n1u2w) 900 | -10/Materials | Core integrity fell below 50% 934 | -10/Materials | Entered Mines 950 | -10/Mines | Core integrity fell below 20% 1128 | -10/Mines | Learned Materials emergency access door positions 1203 | -10/Mines | Learned Materials stockpile data 1242 | -10/Mines | Discovered new exit (range 12) 1246 | -10/Mines | Entered Materials 1246 | -9/Materials | Evolved 2 slots: Propulsion x2 1341 | -9/Materials | Destroyed 9 combat bots 1429 | -9/Materials | Discovered new exit (range 13) 1690 | -9/Materials | Core integrity fell below 50% 1696 | -9/Materials | Discovered new exit (range 20) 1730 | -9/Materials | Core integrity fell below 20% 1970 | -9/Materials | Destroyed by Y-45 Defender with Heavy Assault Rifle Last Messages --------------- 01760_ No effect. 01764_ Sneak attack on K-01 Serf. 01764_ Jacked K-01 Serf... 01764_ Command string: shutdown 01764_ No effect. 01766_ Sneak attack on K-01 Serf. 01766_ Jacked K-01 Serf... 01766_ Command string: abort 01766_ No effect. 01770_ Sneak attack on K-01 Serf. 01770_ K-01 Serf destroyed. 01773_ Acquired 23 matter. 01774_ Dropped Datajack. 01876_ Matter Filter disabled. 01879_ Acquired 5 matter. 01883_ Acquired 2 matter. 01887_ Acquired 7 matter. 01891_ Acquired 1 matter. 01899_ Acquired 2 matter. 01903_ Acquired 4 matter. Map ----- +----------------------------------------------------+ | ??????????????????????????????? | | ??????????????????????????????? | | ??????????????????????????????? | | ??????????????????????????????? | | ??????????????????????????????? | | ??????????????????????????????? | | ????????????????????? ##????? | | ???????????????????## ##????? | | ???????????????????## ##????? | | ???????????????????## ##????? | | ########???????????## ##????? | | ########???????????## ##????? | | ##??????????? # ##????? | | ##??????????? # ####### | | "" ########????? + ####### | | """ ########????? # # [= # | | """ + ##????? # # =] # | | """ ##### ## # # =] !# | | "" #####+######### # # | | # # # # | | ####### ! / # # # | | ## + + # | | ?????## ! # # # | | ?????## # # """ # | | ?????## # # "T # | | #######+############# #@""" # | | ####### ############# #Y # | | ??????????## ### ### | | ??????????## ####### | | ??????????## ######? | | ######???????????## ##????? | | # ???????????## ##????? | | # ????? ########### ##????? | | # ????? ########### ##????? | | # ?????"#/ ] [ # ##????? | | + ?????"# # ##????? | | # ?????"# " """"" # ##????? | | # ????? # " """"" + ##????? | | # ????? # " """"" # ##????? | | ######### " """" # ####????? | | ######### " """" # ####????? | | ## # ##??????? | | ############ ##??????? | | ############ ##??????? | | ##????????## ##??????? | | ###### ##????????## #####???? | | ###### ############ #####???? | | ###### ############ ##???? | | # ##???? | | # ##???? | +----------------------------------------------------+ Best States ------------- Heat Dissipation 28 Energy Generation 14 Energy Capacity 250 Matter Stores 300 Matter Capacity 300 Sight Range 16 Robot Scan Range 14 Terrain Scan Range 16 Terrain Scan Density 10 Evasion (%) 63 Offensive Hacking 10 Item Schematics ----------------- None Robot Schematics ------------------ None Fabricated ------------ Nothing Alien Tech Used ----------------- None Achievements -------------- GoHome() Party Time Challenges ------------ None Game ------ Seed DisruptorGammaMatter Manual? 0 Play Time 01:02:05 Cumulative 15.4 hours Start 2022.07.04 @ 13:11:06 End 2022.07.04 @ 14:27:48 Sessions 1 Manual Loads 0 Difficulty Rogue Special Mode None Game No. 10 Rogue 10 Adventurer 0 Explorer 0 Win Type - Total 0 Types 0/0/0/0/0/0/0/0/0 Lore% 7 Gallery% 16 Achievement% 16 Wizard Run 0 Options --------- ASCII 1 Keyboard 0 Movement Mouse Keybinds 0 Fullscreen 2 Font 24/Smallcaps Map View 113x50 Tactical HUD 1 Map Filters NONE Filters NONE Steam 1 RUN: 745592d3-66bb-4db2-83c2-47ed76e4f822